bitfinex-derivatives/quotes_ETHF0:USTF0_20250214
["timestamp","ask_amount","ask_price","bid_price","bid_amount"]
[1739521006515,41.54076,2699.5,2699.4,1.14618713]
[1739521007005,41.54076,2699.5,2699.4,2.04412039]
[1739521007913,41.54076,2699.5,2699.4,1.30333039]
[1739521008311,0.74082,2699.4,2699.3,0.74079]
[1739521008514,1.28822,2699.4,2699.3,0.74079]
[1739521008909,42.08822,2699.4,2699.3,0.74079]
[1739521009608,42.08822,2699.4,2699.3,1.14653396]
[1739521009807,42.08822,2699.4,2699.3,0.74079]
[1739521012117,42.08819,2699.4,2699.3,0.74079]
[1739521013615,0.74082,2699.3,2699.2,2.64380759]
[1739521013817,0.74082,2699.3,2699.2,3.0494184]
[1739521014326,41.54082,2699.3,2699.2,3.0494184]
[1739521014616,41.54082,2699.3,2699.2,3.04938447]
[1739521016018,40.8,2699.3,2699.2,3.04938447]
[1739521020624,40.8,2699.3,2699.2,3.04942152]
[1739521021830,40.8,2699.3,2699.2,3.04948919]
[1739521023327,40.8,2699.3,2699.2,3.6065042]
[1739521023720,40.8,2699.3,2699.2,3.2008226]
[1739521023920,40.8,2699.3,2699.2,3.60669099]
[1739521025820,40.8,2699.3,2699.2,3.60697063]
[1739521026222,41.54082,2699.3,2699.2,3.60697063]
[1739521026434,41.54082,2699.3,2699.2,0.96872024]
[1739521026624,41.54082,2699.3,2699.2,1.15254523]
[1739521027428,41.54082,2699.3,2699.2,0.41170523]
[1739521028226,42.84415039,2699.3,2699.2,0.41170523]
[1739521031228,42.84415039,2699.3,2699.2,1.15254523]
[1739521031633,40.8,2699.3,2699.2,1.15254523]
[1739521031822,40.8,2699.3,2699.2,2.45587562]
[1739521032231,41.54082,2699.3,2699.2,2.45587562]
[1739521032732,41.54082,2699.3,2699.2,0.41170523]
[1739521032933,41.54082,2699.3,2699.2,1.15254523]
[1739521033523,40.8,2699.3,2699.2,2.45623552]
[1739521034031,41.54082,2699.3,2699.2,2.45623552]
[1739521034334,40.8,2699.3,2699.2,3.59633552]
[1739521035528,40.8,2699.3,2699.2,3.59633762]
[1739521035732,40.8,2699.3,2699.2,4.89966801]
[1739521035923,40.8,2699.3,2699.2,5.47324429]
[1739521036129,40.8,2699.3,2699.2,6.03125562]
[1739521038032,40.8,2699.3,2699.2,4.72792523]
[1739521039343,41.54082,2699.3,2699.2,2.25411856]
[1739521039936,40.8,2699.3,2699.2,3.55744895]
[1739521040234,41.54082,2699.3,2699.2,3.55744895]
[1739521041038,41.54082,2699.3,2699.2,2.99943762]
[1739521041039,40.8,2699.3,2699.2,2.99943762]
[1739521041538,40.8,2699.3,2699.2,3.56773762]
[1739521041839,40.8,2699.3,2699.2,2.26440723]
[1739521042638,40.8,2699.3,2699.2,1.52356723]
[1739521042837,41.54082,2699.3,2699.2,1.69610723]
[1739521043139,40.8,2699.3,2699.2,1.69610723]
[1739521043735,40.8,2699.3,2699.2,1.69597758]
[1739521044237,40.8,2699.3,2699.2,2.82723331]
[1739521044442,40.8,2699.3,2699.2,2.25382462]
[1739521045144,40.8,2699.3,2699.2,2.25380854]
[1739521045742,41.54082,2699.3,2699.2,1.51296854]
[1739521045939,41.54082,2699.3,2699.2,0.96976854]
[1739521046142,44.74862,2699.3,2699.2,0.4119215]
[1739521046338,44.74862,2699.3,2699.2,0.0055572]
[1739521047045,53.71197,2699.3,2698.3,0.74107]
[1739521047342,0.74106,2698.4,2698.3,0.74107]
[1739521047847,41.54106,2698.4,2698.3,1.29868054]
[1739521048050,41.54106,2698.4,2698.3,0.55761054]
[1739521048647,0.74109,2698.3,2698.2,4.3438]
[1739521048844,1.579,2698.4,2698.1,0.0055572]
[1739521049144,0.74112,2698.2,2698.1,0.0055572]
[1739521049340,41.54112,2698.2,2698.1,0.0055572]
[1739521051539,44.45626673,2698.2,2698.1,0.0055572]
[1739521051738,0.74126,2697.7,2697.6,0.5632]
[1739521052347,3.46304673,2697.9,2697.4,0.5673]
[1739521052535,0.74137,2697.3,2697.2,0.5529]
[1739521052743,1.583,2697.4,2696.9,3.2078]
[1739521053041,0.74143,2697.1,2697.0,0.0055572]
[1739521053237,41.54143,2697.1,2697.0,0.0055572]
[1739521054445,40.8,2697.1,2697.0,0.0055572]
[1739521054649,40.8,2697.1,2697.0,0.7470072]
[1739521055251,41.54142,2697.1,2697.0,0.0055572]
[1739521055642,41.54142,2697.1,2697.0,0.7470072]
[1739521055643,40.8,2697.1,2697.0,0.7470072]
[1739521057350,40.8,2697.1,2697.0,3.6830072]
[1739521057550,0.74125,2697.8,2697.7,0.74126]
[1739521057946,3.2078,2698.0,2697.5,0.74129]
[1739521058147,0.74131,2697.5,2697.4,3.94912]
[1739521058446,2.91514673,2697.9,2697.4,3.2078]
[1739521058652,40.8,2697.5,2697.4,4.51934]
[1739521059847,41.54131,2697.5,2697.4,0.5702]
[1739521060050,0.74139,2697.2,2697.1,3.94919]
[1739521060248,0.74138,2697.3,2697.2,0.74137]
[1739521060552,0.74135,2697.4,2697.3,0.74134]
[1739521060744,41.54135,2697.4,2697.3,0.74134]
[1739521060953,40.8,2697.4,2697.3,0.74134]
[1739521062155,40.8,2697.4,2697.3,1.28904]
[1739521065248,40.8,2697.4,2697.3,4.22504]
[1739521065850,40.8,2697.4,2697.3,10.22504]
[1739521066051,0.74114,2698.2,2698.1,0.74113]
[1739521066453,0.74115,2698.1,2698.0,0.74116]
[1739521066750,0.74115,2698.1,2698.0,1.83736]
[1739521066950,41.54115,2698.1,2698.0,1.83736]
[1739521067160,40.8,2698.1,2698.0,1.83736]
[1739521067558,41.54115,2698.1,2698.0,1.83736]
[1739521068062,40.8,2698.1,2698.0,1.83736]
[1739521069751,40.8,2698.1,2698.0,4.75250673]
[1739521076269,0.0055572,2698.6,2698.5,0.74104]
[1739521077159,40.8055572,2698.6,2698.5,0.74104]
[1739521079064,40.8055572,2698.6,2698.5,1.31624]
[1739521084377,40.8055572,2698.6,2698.5,1.87834]
[1739521085771,40.8055572,2698.6,2698.5,1.31624]
[1739521087677,41.5465672,2698.6,2698.5,1.31624]
[1739521087976,40.8055572,2698.6,2698.5,1.31624]
[1739521089280,40.8055572,2698.6,2698.5,0.74104]
[1739521089785,41.5465672,2698.6,2698.5,0.74104]
[1739521091581,40.8055572,2698.6,2698.3,3.2078]
[1739521091781,40.8055572,2698.6,2698.2,0.7411]
[1739521091782,0.74113,2698.3,2698.2,0.7411]
[1739521092085,3.17644673,2698.5,2698.0,3.2078]
[1739521092288,41.54115,2698.1,2698.0,3.94897]
[1739521092487,40.8,2698.1,2698.0,3.94897]
[1739521096983,41.54115,2698.1,2698.0,3.94897]
[1739521097481,41.54115,2698.1,2698.0,3.2078]
[1739521097677,43.13815,2698.1,2698.0,3.2078]
[1739521097879,43.13815,2698.1,2697.6,1.85318]
[1739521097880,0.74125,2697.8,2697.7,0.74122]
[1739521098186,0.8402,2698.0,2697.6,3.2078]
[1739521098386,0.74122,2697.9,2697.8,0.74121]
[1739521098684,0.74124,2697.8,2697.7,0.74123]
[1739521098884,0.74124,2697.8,2697.6,3.2078]
[1739521098885,0.8402,2698.0,2697.6,3.2078]
[1739521099084,0.8402,2698.0,2697.9,0.7412]
[1739521099287,1.597,2698.1,2697.6,5.06098]
[1739521099476,0.8402,2698.2,2697.6,5.06098]
[1739521099673,1.58135,2698.2,2698.1,0.74115]
[1739521100083,42.38135,2698.2,2698.1,0.74115]
[1739521100278,41.6402,2698.2,2697.7,0.569]
[1739521100484,40.8,2698.2,2698.1,0.74115]
[1739521101188,40.8,2698.2,2698.1,1.85419646]
[1739521101781,40.8,2698.2,2698.1,1.29725]
[1739521104788,40.8,2698.2,2698.1,1.85420961]
[1739521106395,40.8,2698.2,2698.1,2.42669039]
[1739521107391,0.0055572,2698.6,2698.1,1.68552067]
[1739521107588,0.0055572,2698.6,2698.5,3.94884]
[1739521107994,0.0055572,2698.6,2698.5,5.03614]
[1739521108591,40.8055572,2698.6,2698.5,5.03614]
[1739521111595,40.8055572,2698.6,2698.5,5.59304027]
[1739521112098,0.5731,2699.2,2698.5,4.85200027]
[1739521112391,3.4693,2699.3,2698.9,5.06011]
[1739521112693,3.4693,2699.3,2699.2,0.74084]
[1739521112694,4.21013,2699.3,2699.2,0.74084]
[1739521113293,45.01013,2699.3,2699.2,0.74084]
[1739521113890,0.74084,2699.2,2699.1,1.33266]
[1739521114497,41.54084,2699.2,2699.1,1.33266]
[1739521115092,40.8,2699.2,2699.1,1.33266]
[1739521115293,41.54084,2699.2,2699.1,1.33266]
[1739521118203,40.8,2699.2,2699.1,1.33266]
[1739521119100,41.54084,2699.2,2699.1,1.33266]
[1739521120910,40.8,2699.2,2699.1,1.33266]
[1739521122510,41.54084,2699.2,2699.1,1.33266]
[1739521123006,40.8,2699.2,2699.1,1.33266]
[1739521123509,41.54084,2699.2,2699.1,1.33266]
[1739521125510,40.8,2699.2,2699.1,1.33266]
[1739521126208,41.54084,2699.2,2699.1,1.33266]
[1739521126509,40.8,2699.2,2699.1,1.33266]
[1739521126808,41.54084,2699.2,2699.1,1.33266]
[1739521127210,40.8,2699.2,2699.1,1.33266]
[1739521134513,40.8,2699.2,2699.1,1.89011832]
[1739521138510,40.8,2699.2,2699.1,2.46336888]
[1739521138915,40.8,2699.2,2699.1,2.46336837]
[1739521140718,40.8,2699.2,2699.1,1.89011832]
[1739521141018,40.8,2699.2,2699.1,2.46344678]
[1739521141624,40.8,2699.2,2699.1,1.89011832]
[1739521142320,40.8,2699.2,2699.1,2.46349792]
[1739521142521,40.8,2699.2,2699.1,1.89011832]
[1739521146323,40.8,2699.2,2699.1,2.46353422]
[1739521148825,40.8,2699.2,2699.1,4.04953422]
[1739521149628,0.0055572,2699.5,2699.1,4.04953422]
[1739521149923,0.0055572,2699.5,2699.4,3.94859]
[1739521150315,0.0055572,2699.5,2699.4,5.08234832]
[1739521150726,40.8055572,2699.5,2699.4,5.6557368]
[1739521151026,1.587,2700.5,2699.4,4.9149468]
[1739521151221,0.74053,2700.4,2700.3,0.74051]
[1739521151426,0.7406,2700.1,2700.0,3.2078]
[1739521151627,0.74065,2700.0,2699.9,0.74064]
[1739521151830,0.74064,2700.0,2699.9,0.74063]
[1739521152017,0.74064,2700.0,2699.9,0.74065]
[1739521152018,40.8,2700.0,2699.9,0.74065]
[1739521154126,41.54062,2700.0,2699.9,0.74065]
[1739521154324,0.74065,2699.9,2699.8,1.31977]
[1739521154624,3.2078,2700.1,2699.4,3.2078]
[1739521154829,0.74073,2699.7,2699.6,0.7407]
[1739521155027,41.54073,2699.7,2699.6,0.7407]
[1739521155218,40.8,2699.7,2699.6,0.7407]
[1739521156322,40.8,2699.7,2699.6,1.3088]
[1739521157225,40.8,2699.7,2699.6,1.86572281]
[1739521158137,40.8,2699.7,2699.6,2.43813949]
[1739521158331,40.8,2699.7,2699.6,2.43807037]
[1739521160034,40.8,2699.7,2699.6,2.4379735]
[1739521160427,40.8,2699.7,2699.6,8.43788671]
[1739521161427,40.8,2699.7,2699.6,2.43788671]
[1739521161932,40.8,2699.7,2699.6,2.43782226]
[1739521163939,40.8,2699.7,2699.6,2.43777902]
[1739521165234,40.8,2699.7,2699.6,2.43779718]
[1739521165940,40.8,2699.7,2699.6,2.43776093]
[1739521169140,0.0055572,2700.2,2699.6,1.69706093]
[1739521169339,0.0055572,2700.2,2700.1,3.9484]
[1739521169542,0.0055572,2700.2,2700.1,6.8844]
[1739521169735,0.0055572,2700.2,2700.1,8.028]
[1739521169929,40.8055572,2700.2,2700.1,8.028]
[1739521175142,40.8055572,2700.2,2700.1,5.092]
[1739521175339,40.8055572,2700.2,2700.1,3.9484]
[1739521175541,40.8055572,2700.2,2699.8,3.2078]
[1739521175744,0.0055572,2700.2,2699.8,3.2078]
[1739521176145,0.74063,2700.0,2699.9,0.74063]
[1739521176446,0.0055572,2700.2,2699.8,3.2078]
[1739521176744,40.8,2699.9,2699.8,3.94848]
[1739521178239,40.8,2699.9,2699.8,5.64318]
[1739521178438,40.8,2699.9,2699.8,11.29990222]
[1739521181644,0.0055572,2700.2,2699.8,11.29990222]
[1739521181950,0.0055572,2700.2,2700.1,6.86354673]
[1739521182644,40.8055572,2700.2,2700.1,7.42063676]
[1739521183453,40.8055572,2700.2,2700.1,4.50549003]
[1739521184048,40.8055572,2700.2,2700.1,3.9484]
[1739521185457,40.8055572,2700.2,2700.1,4.50593041]
[1739521185860,40.8055572,2700.2,2700.1,7.42107714]
[1739521186352,40.8055572,2700.2,2700.1,7.99440599]
[1739521187057,40.8055572,2700.2,2700.1,7.42107714]
[1739521187357,40.8055572,2700.2,2700.1,7.99440874]
[1739521189554,3.2078,2701.4,2700.2,1.85143]
[1739521189759,0.5542,2701.0,2700.9,0.74038]
[1739521190553,41.3542,2701.0,2700.9,0.74038]
[1739521192156,41.3542,2701.0,2700.9,3.65552673]
[1739521192353,41.3542,2701.0,2700.9,4.75112673]
[1739521192554,40.8,2701.0,2700.9,4.75112673]
[1739521203160,40.8,2701.0,2700.9,5.87870042]
[1739521203759,3.2078,2702.4,2700.9,11.13832042]
[1739521203969,1.2834,2702.3,2702.1,0.74002]
[1739521204169,1.2834,2702.3,2702.1,0.74003]
[1739521204468,1.2834,2702.3,2701.9,6.12294673]
[1739521204855,40.8,2702.0,2701.9,6.86304673]
[1739521207770,40.8,2702.0,2701.9,8.44804673]
[1739521213971,0.0055572,2702.4,2702.3,0.73999]
[1739521214166,0.0055572,2702.4,2702.3,6.86293673]
[1739521214679,7.2e-06,2702.4,2702.3,8.44593673]
[1739521214870,40.8000072,2702.4,2702.3,8.44593673]
[1739521215279,3.2078,2703.7,2702.3,16.62109346]
[1739521215574,0.73954,2704.0,2703.7,0.73961]
[1739521215767,0.73954,2704.0,2703.6,3.2078]
[1739521215768,0.8089,2704.1,2703.8,2.91514673]
[1739521215968,0.73953,2704.0,2703.8,2.91514673]
[1739521216169,40.8,2703.9,2703.8,2.91514673]
[1739521216676,40.8,2703.9,2703.6,3.21334693]
[1739521217175,0.73961,2703.7,2703.6,3.21334693]
[1739521217876,40.8,2703.7,2703.6,3.21334693]
[1739521218076,40.8,2703.7,2703.6,3.95298693]
[1739521218273,40.8,2703.7,2703.6,3.21334693]
[1739521218474,41.53961,2703.7,2703.6,3.21334693]
[1739521218877,41.53961,2703.7,2703.6,3.95298693]
[1739521218878,40.8,2703.7,2703.6,3.95298693]
[1739521219081,40.8,2703.7,2703.6,3.21334693]
[1739521219378,41.53961,2703.7,2703.6,3.21334693]
[1739521219868,40.8,2703.7,2703.6,3.21334693]
[1739521220067,40.8,2703.7,2703.6,3.95298693]
[1739521220276,40.8,2703.7,2703.6,4.54958693]
[1739521220481,40.8,2703.7,2703.6,3.80994693]
[1739521220482,41.53961,2703.7,2703.6,3.80994693]
[1739521220673,41.53961,2703.7,2703.6,4.54958693]
[1739521220869,40.8,2703.7,2703.6,4.54958693]
[1739521221177,41.53961,2703.7,2703.6,3.80994693]
[1739521221373,41.53961,2703.7,2703.6,3.21334693]
[1739521221773,40.8,2703.7,2703.6,3.95298693]
[1739521222083,41.53961,2703.7,2703.6,3.95298693]
[1739521223174,41.53961,2703.7,2703.6,3.21334693]
[1739521223381,41.53961,2703.7,2703.6,0.00554693]
[1739521224379,40.8,2703.7,2703.6,3.95298693]
[1739521224770,41.53961,2703.7,2703.6,3.21334693]
[1739521225079,40.8,2703.7,2703.6,3.95298693]
[1739521227583,41.53961,2703.7,2703.6,3.95298693]
[1739521228773,40.8,2703.7,2703.6,3.95298693]
[1739521230078,40.8,2703.7,2703.6,5.53398693]
[1739521236283,40.8,2703.7,2703.6,3.95298693]
[1739521237289,41.53961,2703.7,2703.6,3.21334693]
[1739521238289,41.53961,2703.7,2703.6,0.00302882]
[1739521238679,0.73978,2703.1,2703.0,3.2078]
[1739521238890,1.84917,2703.5,2702.9,0.73981]
[1739521238891,0.73981,2703.0,2702.9,0.73981]
[1739521239090,0.5812,2703.4,2702.6,6.12294673]
[1739521239390,0.73974,2703.3,2703.2,0.73975]
[1739521239585,40.8,2703.3,2703.2,0.73975]
[1739521239991,41.53972,2703.3,2703.2,0.73975]
[1739521240291,40.8,2703.3,2703.0,0.00554693]
[1739521240791,0.73976,2703.2,2703.0,0.00554693]
[1739521240985,0.73976,2703.2,2703.0,0.74532693]
[1739521241288,40.8,2703.3,2703.0,0.00554693]
[1739521241497,40.8,2703.3,2703.1,0.73975]
[1739521241683,40.8,2703.3,2703.0,0.00554693]
[1739521241998,0.73975,2703.2,2703.1,0.73976]
[1739521242290,0.8375,2703.4,2703.0,0.00554693]
[1739521242490,0.73976,2703.2,2703.1,0.73976]
[1739521242691,40.8,2703.2,2703.1,0.73976]
[1739521244085,41.53975,2703.2,2703.1,0.73976]
[1739521244894,0.73978,2703.1,2703.0,0.00554693]
[1739521245295,0.73977,2703.2,2703.1,0.73976]
[1739521245695,41.53977,2703.2,2703.1,0.73976]
[1739521245897,40.8,2703.2,2703.1,0.73976]
[1739521246097,41.53975,2703.2,2703.1,0.73976]
[1739521246896,40.8,2703.2,2703.1,0.73976]
[1739521247096,41.53975,2703.2,2703.1,0.73976]
[1739521247690,0.73978,2703.1,2703.0,0.00554693]
[1739521248492,41.53978,2703.1,2703.0,0.00554693]
[1739521249697,43.12778,2703.1,2703.0,0.00554693]
[1739521252004,41.53978,2703.1,2703.0,0.74534693]
[1739521252199,40.8,2703.1,2703.0,0.74534693]
[1739521252601,41.53978,2703.1,2703.0,1.28674693]
[1739521253305,41.53978,2703.1,2703.0,0.54694693]
[1739521253606,41.53978,2703.1,2703.0,0.00554693]
[1739521254705,41.53978,2703.1,2703.0,0.74534693]
[1739521255709,41.53978,2703.1,2703.0,0.00554693]
[1739521257702,41.53978,2703.1,2703.0,0.74534693]
[1739521257905,41.53978,2703.1,2703.0,0.00554693]
[1739521263010,41.53978,2703.1,2703.0,0.74534693]
[1739521263604,41.53978,2703.1,2703.0,0.00554693]
[1739521264114,41.53978,2703.1,2703.0,0.74534693]
[1739521267110,40.8,2703.1,2703.0,0.74534693]
[1739521267806,40.8,2703.1,2703.0,1.32954693]
[1739521270707,40.8,2703.1,2703.0,1.8868201]
[1739521271810,40.8,2703.1,2703.0,2.45954695]
[1739521272614,40.8,2703.1,2703.0,2.45945295]
[1739521273013,40.8,2703.1,2703.0,1.8868201]
[1739521273204,40.8,2703.1,2703.0,2.45937729]
[1739521274412,40.8,2703.1,2703.0,4.04524595]
[1739521274712,6.12294673,2704.1,2703.0,9.30544595]
[1739521274918,0.73959,2703.9,2703.8,0.73957]
[1739521275211,3.2078,2704.1,2703.6,1.1704]
[1739521275417,0.00364317,2704.2,2704.1,0.7395]
[1739521275807,41.54311317,2704.2,2704.1,0.7395]
[1739521276310,41.54313317,2704.2,2704.1,0.7395]
[1739521276511,41.54311317,2704.2,2704.1,0.7395]
[1739521276707,40.80364317,2704.2,2704.1,0.7395]
[1739521276907,41.54311317,2704.2,2704.1,0.7395]
[1739521277108,40.80364317,2704.2,2704.1,0.7395]
[1739521279715,40.80364317,2704.2,2704.1,3.9473]
[1739521280117,40.80364317,2704.2,2704.1,5.0843]
[1739521284822,0.73938,2704.6,2704.1,4.3448]
[1739521285023,0.73938,2704.6,2704.5,0.73939]
[1739521285223,2.91514673,2705.0,2704.5,0.73939]
[1739521285421,0.73936,2704.7,2704.6,0.5736]
[1739521285815,41.53936,2704.7,2704.6,1.31296]
[1739521286311,41.53934,2704.7,2704.6,0.5736]
[1739521286615,41.53934,2704.7,2704.6,1.31296]
[1739521293817,41.53934,2704.7,2704.4,3.21334693]
[1739521294014,41.53934,2704.7,2704.4,0.00554693]
[1739521294015,0.73939,2704.5,2704.4,0.00554693]
[1739521294215,0.73939,2704.5,2704.4,0.74496693]
[1739521294525,41.53939,2704.5,2704.4,0.74496693]
[1739521295624,40.8,2704.5,2704.4,0.74496693]
[1739521295825,41.53939,2704.5,2704.4,0.74496693]
[1739521297321,40.8,2704.5,2704.4,0.74496693]
[1739521298025,40.8,2704.5,2704.4,3.95276693]
[1739521299025,41.53939,2704.5,2704.4,3.95276693]
[1739521299425,40.8,2704.5,2704.4,3.95276693]
[1739521300630,40.8,2704.5,2704.4,6.86791366]
[1739521301117,41.53939,2704.5,2704.4,6.86791366]
[1739521301524,40.8,2704.5,2704.4,6.86791366]
[1739521302731,0.00554693,2704.9,2704.8,0.73931]
[1739521302936,0.00554693,2704.9,2704.8,6.86225673]
[1739521303627,40.80554693,2704.9,2704.8,6.86225673]
[1739521307331,3.2078,2706.4,2704.8,20.39625272]
[1739521307520,3.2078,2706.7,2706.1,2.91514673]
[1739521307930,0.73889,2706.4,2706.2,0.73891]
[1739521308125,3.2078,2706.7,2706.0,1.1142]
[1739521308427,3.2078,2706.7,2706.3,0.02420495]
[1739521308428,4.7978,2706.7,2706.3,0.02420495]
[1739521308726,0.73893,2706.2,2706.1,0.00554693]
[1739521308931,0.73892,2706.3,2706.1,0.74449693]
[1739521309125,0.73892,2706.3,2706.2,0.02420495]
[1739521309729,41.5389,2706.3,2706.2,0.02636547]
[1739521309934,40.8,2706.3,2706.1,0.00554693]
[1739521310127,41.53892,2706.3,2706.1,3.65963366]
[1739521310528,0.73893,2706.2,2706.1,2.92069366]
[1739521310929,4.7968,2706.7,2706.1,2.92069366]
[1739521311134,0.2554,2706.8,2706.4,2.91514673]
[1739521311328,3.94641,2707.4,2706.7,2.91514673]
[1739521311536,3.2078,2707.4,2707.1,2.91514673]
[1739521311728,0.73864,2707.3,2707.1,2.91514673]
[1739521312232,3.2078,2707.4,2707.1,2.91514673]
[1739521312534,0.73857,2707.6,2707.3,3.2078]
[1739521312737,0.73858,2707.5,2707.3,3.94642]
[1739521312930,0.7386,2707.5,2707.2,0.73865]
[1739521313132,3.2078,2707.7,2707.1,2.91514673]
[1739521313332,3.2078,2708.0,2707.4,2.91514673]
[1739521313536,3.2078,2708.0,2707.7,2.91514673]
[1739521313739,3.2078,2708.7,2707.9,3.2078]
[1739521313932,3.2078,2709.1,2708.5,2.91514673]
[1739521314128,3.2078,2709.1,2708.8,2.91514673]
[1739521314340,21.72565604,2709.7,2709.6,0.738]
[1739521314530,21.72565604,2709.7,2709.6,6.86094673]
[1739521314839,21.72565604,2709.7,2709.6,2.91514673]
[1739521315030,0.73803,2709.5,2709.4,0.00553659]
[1739521315734,49.71514673,2709.5,2708.4,2.91514673]
[1739521315935,49.71514673,2709.5,2708.3,3.2078]
[1739521315936,0.7383,2708.5,2708.3,3.2078]
[1739521316134,3.2078,2708.7,2708.3,3.2078]
[1739521316341,0.11702988,2708.3,2708.1,2.91514673]
[1739521316633,40.8,2708.2,2708.1,2.77391985]
[1739521317137,40.8,2708.2,2708.1,3.51232985]
[1739521317435,40.8,2708.2,2708.1,12.42747658]
[1739521317632,40.8,2708.2,2708.1,3.65355673]
[1739521317837,40.8,2708.2,2708.1,5.30055673]
[1739521319730,40.8,2708.2,2708.1,3.65355673]
[1739521320037,40.8,2708.2,2708.1,5.29755673]
[1739521320235,40.8,2708.2,2708.1,2.91514673]
[1739521320534,40.8,2708.2,2708.1,3.65355673]
[1739521320734,0.00550212,2708.5,2708.4,0.73833]
[1739521320935,0.73804,2709.5,2709.0,0.73815]
[1739521321139,0.73804,2709.5,2709.2,2.91514673]
[1739521321331,3.2078,2709.3,2708.9,2.91514673]
[1739521321536,0.73825,2708.7,2708.6,2.91514673]
[1739521321737,0.73833,2708.4,2708.3,2.91514673]
[1739521322038,0.7383,2708.5,2708.3,2.91514673]
[1739521322232,3.2078,2709.0,2708.3,2.91514673]
[1739521322537,40.8,2708.4,2708.3,2.91514673]
[1739521324543,40.8,2708.4,2708.3,3.65349673]
[1739521324744,40.8,2708.4,2708.3,2.91514673]
[1739521324942,41.53833,2708.4,2708.3,2.91514673]
[1739521325132,41.53833,2708.4,2708.2,3.2078]
[1739521325335,0.73835,2708.3,2708.2,3.2078]
[1739521325735,0.73833,2708.4,2708.2,3.94617]
[1739521326042,40.8,2708.3,2708.2,3.2078]
[1739521326441,40.8,2708.3,2707.9,3.21333659]
[1739521326839,0.73844,2708.0,2707.9,3.21333659]
[1739521327040,0.73844,2708.0,2707.9,0.00553659]
[1739521327543,44.74624,2708.0,2707.9,0.00553659]
[1739521327844,40.8,2708.0,2707.9,0.74399659]
[1739521328041,40.8,2708.0,2707.9,0.00553659]
[1739521328345,40.8,2708.0,2707.9,0.74399659]
[1739521328644,40.8,2708.0,2707.9,1.31659659]
[1739521329453,40.8,2708.0,2707.9,1.89839659]
[1739521329743,40.8,2708.0,2707.9,5.52725891]
[1739521331540,40.8,2708.0,2707.9,4.78879891]
[1739521331541,41.53844,2708.0,2707.9,4.78879891]
[1739521331844,41.53844,2708.0,2707.9,1.89839659]
[1739521332146,41.53844,2708.0,2707.9,1.15993659]
[1739521332336,40.8,2708.0,2707.9,0.58733659]
[1739521332542,41.53844,2708.0,2707.9,1.32579659]
[1739521332741,40.8,2708.0,2707.9,1.32579659]
[1739521333647,40.8,2708.0,2707.9,0.58733659]
[1739521333848,40.8,2708.0,2707.9,1.32579659]
[1739521339450,40.8,2708.0,2707.9,1.71911631]
[1739521339645,40.8,2708.0,2707.9,4.68762772]
[1739521339948,41.53844,2708.0,2707.9,1.0587654]
[1739521340947,0.73846,2707.9,2707.8,3.2078]
[1739521341147,0.73846,2707.9,2707.7,0.00553659]
[1739521341148,0.73849,2707.8,2707.7,0.00553659]
[1739521341550,41.53849,2707.8,2707.7,0.00553659]
[1739521342257,41.53849,2707.8,2707.7,0.74405659]
[1739521342454,40.8,2707.8,2707.7,0.74405659]
[1739521342653,41.53849,2707.8,2707.7,0.74405659]
[1739521342956,41.53849,2707.8,2707.7,0.37536752]
[1739521343256,40.8,2707.8,2707.7,0.37536752]
[1739521344256,40.8,2707.8,2707.7,0.77021806]
[1739521344555,40.8,2707.8,2707.7,0.39485054]
[1739521344750,41.53849,2707.8,2707.7,0.39485054]
[1739521345148,41.53849,2707.8,2707.7,0.379583]
[1739521345347,41.53849,2707.8,2707.7,0.93261161]
[1739521345547,41.53849,2707.8,2707.7,0.55302861]
[1739521346648,40.8,2707.8,2707.7,0.55302861]
[1739521346849,40.8,2707.8,2707.7,1.86007883]
[1739521347753,40.8,2707.8,2707.7,2.43127883]
[1739521347951,0.00553659,2708.2,2708.1,0.73841]
[1739521348146,0.00553659,2708.2,2708.1,3.94621]
[1739521348351,0.74391659,2708.2,2708.1,5.06754041]
[1739521348653,0.00553659,2708.2,2708.1,5.06754041]
[1739521348860,40.80553659,2708.2,2708.1,5.06754041]
[1739521350347,41.54391659,2708.2,2708.1,5.06754041]
[1739521350554,41.54391659,2708.2,2708.1,4.32913041]
[1739521350759,41.54391659,2708.2,2708.1,0.55302861]
[1739521350960,41.54391659,2708.2,2708.1,0.36412106]
[1739521351460,0.73849,2707.8,2707.7,0.5712]
[1739521351760,0.73849,2707.8,2707.7,0.5689234]
[1739521352059,0.73849,2707.8,2707.7,1.3074434]
[1739521352258,41.53849,2707.8,2707.7,1.3074434]
[1739521352452,0.73852,2707.7,2707.6,4.1948548]
[1739521352652,0.73852,2707.7,2707.6,4.76412392]
[1739521352852,0.7385,2707.8,2707.7,0.73848]
[1739521353254,0.73852,2707.7,2707.6,4.1948648]
[1739521353452,0.73852,2707.7,2707.6,4.7641677]
[1739521354062,41.53852,2707.7,2707.6,4.7641677]
[1739521354359,41.53852,2707.7,2707.6,3.4563348]
[1739521354558,41.53852,2707.7,2707.6,4.1948848]
[1739521356062,41.53852,2707.7,2707.6,3.4563348]
[1739521356266,41.53852,2707.7,2707.6,2.8969348]
[1739521356864,41.53852,2707.7,2707.6,3.6354848]
[1739521357063,41.52325246,2707.7,2707.6,3.6354848]
[1739521357364,41.52325246,2707.7,2707.6,2.8969348]
[1739521357757,41.52325246,2707.7,2707.6,3.6354848]
[1739521357965,41.52325246,2707.7,2707.6,2.8969348]
[1739521358166,41.52325246,2707.7,2707.6,3.6354848]
[1739521360371,41.52325246,2707.7,2707.6,2.8969348]
[1739521360574,41.52325246,2707.7,2707.6,3.6354848]
[1739521363472,0.73855,2707.6,2707.5,3.95189659]
[1739521363870,0.73855,2707.6,2707.5,3.95190659]
[1739521364380,41.53855,2707.6,2707.5,3.21333659]
[1739521364877,41.53855,2707.6,2707.5,3.95190659]
[1739521366378,41.53855,2707.6,2707.5,3.21333659]